bitfinex/quotes_BTCUSD_20250608
["timestamp","ask_amount","ask_price","bid_price","bid_amount"]
[1749395815059,0.3333845,106100.0,106090.0,20.88062047]
[1749395815264,0.49079975,106100.0,106090.0,20.88062047]
[1749395815606,0.48418542,106100.0,106090.0,20.88062047]
[1749395815825,0.48418545,106100.0,106090.0,20.88062047]
[1749395816025,0.49080159,106100.0,106090.0,20.88062047]
[1749395816179,0.49080159,106100.0,106090.0,20.87962047]
[1749395816180,0.85628949,106100.0,106090.0,20.87962047]
[1749395816382,0.81599573,106100.0,106090.0,20.87862047]
[1749395816591,0.81699573,106100.0,106090.0,20.87862047]
[1749395816770,0.89983562,106100.0,106090.0,20.87862047]
[1749395816992,0.89221892,106100.0,106090.0,20.87862047]
[1749395817195,0.93911556,106100.0,106090.0,20.87862047]
[1749395817394,0.95976035,106100.0,106090.0,20.87862047]
[1749395817597,0.94873244,106100.0,106090.0,20.87862047]
[1749395817803,0.96637747,106100.0,106090.0,20.87862047]
[1749395818003,0.91101481,106100.0,106090.0,20.87862047]
[1749395818201,0.9043979,106100.0,106090.0,20.87862047]
[1749395818404,0.95961803,106100.0,106090.0,20.87862047]
[1749395818606,0.94197227,106100.0,106090.0,20.87862047]
[1749395818812,0.97204368,106100.0,106090.0,20.87862047]
[1749395819010,0.9786611,106100.0,106090.0,20.87862047]
[1749395819212,0.9543979,106100.0,106090.0,20.87862047]
[1749395819484,0.98588145,106100.0,106090.0,20.87862047]
[1749395819822,0.99245664,106100.0,106090.0,20.87862047]
[1749395820686,0.98588145,106100.0,106090.0,20.87862047]
[1749395821821,0.99244298,106100.0,106090.0,20.87862047]
[1749395821952,0.9543979,106100.0,106090.0,20.87862047]
[1749395822598,0.96095944,106100.0,106090.0,20.87862047]
[1749395823047,0.96095951,106100.0,106090.0,20.87862047]
[1749395823179,0.96095955,106100.0,106090.0,20.87862047]
[1749395823551,0.96095967,106100.0,106090.0,20.87862047]
[1749395823761,0.9543979,106100.0,106090.0,20.87862047]
[1749395823890,0.96095958,106100.0,106090.0,20.87862047]
[1749395824094,0.9523979,106100.0,106090.0,20.87862047]
[1749395824293,0.99645775,106100.0,106090.0,20.87862047]
[1749395824742,1.06636219,106100.0,106090.0,20.87862047]
[1749395824936,1.07136219,106100.0,106090.0,20.87962047]
[1749395825342,1.06836219,106100.0,106090.0,20.87962047]
[1749395825951,1.06836219,106100.0,106090.0,20.88062047]
[1749395825952,1.06680047,106100.0,106090.0,20.88062047]
[1749395826155,1.0733622,106100.0,106090.0,20.88062047]
[1749395826403,1.06680047,106100.0,106090.0,20.88062047]
[1749395826606,1.07336219,106100.0,106090.0,20.88062047]
[1749395826985,1.0733622,106100.0,106090.0,20.88062047]
[1749395827419,1.06680047,106100.0,106090.0,20.88062047]
[1749395828034,1.02930234,106100.0,106090.0,20.88062047]
[1749395828182,0.9593979,106100.0,106090.0,20.88062047]
[1749395828372,0.96595979,106100.0,106090.0,20.88062047]
[1749395828573,0.9593979,106100.0,106090.0,20.88062047]
[1749395828776,0.96595983,106100.0,106090.0,20.88062047]
[1749395828978,0.96595986,106100.0,106090.0,20.88062047]
[1749395829196,1.06235934,106100.0,106090.0,20.88062047]
[1749395829687,0.96595987,106100.0,106090.0,20.88062047]
[1749395829891,0.9593979,106100.0,106090.0,20.88062047]
[1749395830092,1.2479179,106100.0,106090.0,20.87370798]
[1749395830463,1.19790109,106100.0,106090.0,20.87370798]
[1749395830699,1.1979011,106100.0,106090.0,20.87370798]
[1749395830886,1.19790112,106100.0,106090.0,20.87370798]
[1749395831086,1.19790112,106100.0,106090.0,20.78956798]
[1749395831316,1.25406961,106100.0,106090.0,20.78956798]
[1749395831517,1.24750741,106100.0,106090.0,20.78956798]
[1749395831884,1.25406961,106100.0,106090.0,20.78956798]
[1749395832305,1.24750741,106100.0,106090.0,20.78956798]
[1749395832506,1.3491443,106100.0,106090.0,20.78956798]
[1749395832708,1.25406961,106100.0,106090.0,20.78956798]
[1749395833032,1.24750741,106100.0,106090.0,20.78956798]
[1749395833261,1.25407589,106100.0,106090.0,20.78956798]
[1749395833441,1.24750741,106100.0,106090.0,20.78956798]
[1749395834192,1.25407589,106100.0,106090.0,20.78956798]
[1749395834601,1.74307584,106100.0,106090.0,20.78956798]
[1749395834915,1.74307582,106100.0,106090.0,20.78956798]
[1749395835589,1.74307584,106100.0,106090.0,20.78956798]
[1749395835722,1.83947532,106100.0,106090.0,20.78956798]
[1749395836131,1.83290689,106100.0,106090.0,20.78956798]
[1749395836330,1.7767384,106100.0,106090.0,20.78956798]
[1749395836549,1.78330683,106100.0,106090.0,20.78956798]
[1749395836733,1.68690735,106100.0,106090.0,20.78956798]
[1749395837573,1.68033892,106100.0,106090.0,20.78956798]
[1749395837911,1.67973892,106100.0,106090.0,20.78956798]
[1749395838702,1.67973892,106100.0,106090.0,20.74240725]
[1749395839006,1.67973892,106100.0,106090.0,20.68580913]
[1749395839007,1.75518633,106100.0,106090.0,20.68580913]
[1749395839207,1.76175499,106100.0,106090.0,20.68580913]
[1749395839408,1.85815447,106100.0,106090.0,20.66226913]
[1749395839666,1.67973892,106100.0,106090.0,20.6151084]
[1749395839867,1.6864375,106100.0,106090.0,20.6151084]
[1749395840071,1.67981892,106100.0,106090.0,20.6151084]
[1749395840278,5.92249192,106100.0,106090.0,18.99085513]
[1749395840479,6.00039287,106100.0,106090.0,18.62378352]
[1749395840670,6.00039287,106100.0,106090.0,18.49879991]
[1749395840671,6.5835258,106100.0,106090.0,18.49879991]
[1749395840857,7.12041696,106100.0,106090.0,18.4246547]
[1749395841067,7.12041696,106100.0,106090.0,17.20215235]
[1749395841277,7.02601748,106100.0,106090.0,17.10447215]
[1749395841482,7.06600355,106100.0,106090.0,17.07848438]
[1749395841633,7.07700383,106100.0,106090.0,17.07948438]
[1749395841834,7.07032387,106100.0,106090.0,17.07848438]
[1749395842043,7.08332387,106100.0,106090.0,17.07948438]
[1749395842226,7.08332386,106100.0,106090.0,17.07948438]
[1749395842423,6.58712386,106100.0,106090.0,17.03703973]
[1749395842666,6.23804447,106100.0,106090.0,17.03703973]
[1749395842878,6.19139255,106100.0,106090.0,17.03703973]
[1749395843073,6.54067166,106100.0,106090.0,17.03703973]
[1749395843286,6.52309699,106100.0,106090.0,17.03603973]
[1749395843486,6.51009699,106100.0,106090.0,17.03503973]
[1749395843710,6.52267155,106100.0,106090.0,17.03503973]
[1749395843914,6.56115786,106100.0,106090.0,17.03503973]
[1749395844234,2.43635494,106100.0,106090.0,16.58362635]
[1749395844409,6.61484528,106100.0,106090.0,16.55541358]
[1749395844642,6.23840528,106100.0,106090.0,16.55541358]
[1749395844842,6.48418014,106100.0,106090.0,16.55541358]
[1749395845587,6.47760493,106100.0,106090.0,16.55541358]
[1749395845818,6.43968827,106100.0,106090.0,16.55541358]
[1749395846139,6.04322445,106100.0,106090.0,16.55541358]
[1749395846340,6.84546781,106100.0,106090.0,16.44215799]
[1749395847146,6.82352466,106100.0,106090.0,16.44215799]
[1749395847496,6.84554781,106100.0,106090.0,16.44215799]
[1749395848312,6.71433163,106100.0,106090.0,16.27428508]
[1749395848519,6.71433163,106100.0,106090.0,16.15938492]
[1749395849738,5.84753163,106100.0,106090.0,16.15938492]
[1749395850439,5.84753163,106100.0,106090.0,16.07443817]
[1749395851009,7.25825163,106100.0,106090.0,16.07443817]
[1749395851416,7.28659763,106100.0,106090.0,16.07443817]
[1749395853801,7.28659763,106100.0,106090.0,16.01780556]
[1749395854182,7.41781381,106100.0,106090.0,15.87622402]
[1749395854764,7.28659763,106100.0,106090.0,15.87622402]
[1749395854937,7.28659763,106100.0,106090.0,15.80721159]
[1749395855553,3.16179463,106100.0,106090.0,15.80721159]
[1749395855757,7.28659763,106100.0,106090.0,15.78834159]
[1749395856170,7.28377899,106100.0,106090.0,14.70845231]
[1749395856390,7.28377899,106100.0,106090.0,14.698976]
[1749395856391,7.19019815,106100.0,106090.0,14.698976]
[1749395856802,7.19019815,106100.0,106090.0,14.597976]
[1749395859520,6.81231815,106100.0,106090.0,14.597976]
[1749395859737,7.15522407,106100.0,106090.0,12.577976]
[1749395859949,7.15522407,106100.0,106090.0,12.274976]
[1749395859950,6.79145103,106100.0,106090.0,12.274976]
[1749395860158,6.31329103,106100.0,106090.0,12.274976]
[1749395860369,7.14631188,106100.0,106090.0,12.08903587]
[1749395860565,7.22118795,106100.0,106090.0,12.08903587]
[1749395861157,6.84270795,106100.0,106090.0,12.08903587]
[1749395861361,7.22114795,106100.0,106090.0,12.08903587]
[1749395861766,6.93450125,106100.0,106090.0,12.08903587]
[1749395861937,7.22110795,106100.0,106090.0,12.08903587]
[1749395862375,6.8074271,106100.0,106090.0,12.08903587]
[1749395862790,6.0890671,106100.0,106090.0,12.08903587]
[1749395862998,6.5674671,106100.0,106090.0,12.08903587]
[1749395863194,6.92196795,106100.0,106090.0,12.08903587]
[1749395863398,6.3679071,106100.0,106090.0,12.12093587]
[1749395863623,6.29255103,106100.0,106090.0,12.12093587]
[1749395864033,6.64709188,106100.0,106090.0,12.12093587]
[1749395864824,6.64705188,106100.0,106090.0,12.12093587]
[1749395866199,6.6618106,106100.0,106090.0,12.12093587]
[1749395866703,6.6619306,106100.0,106090.0,12.12093587]
[1749395867903,2.5371276,106100.0,106090.0,12.12093587]
[1749395868111,6.73680667,106100.0,106090.0,12.12093587]
[1749395869824,2.63071384,106100.0,106090.0,12.12093587]
[1749395870067,6.75551684,106100.0,106090.0,12.12093587]
[1749395870511,6.75598579,106100.0,106090.0,12.03600763]
[1749395871991,6.75590579,106100.0,106090.0,12.03600763]
[1749395873376,6.65590579,106100.0,106090.0,12.03600763]
[1749395873505,6.75590579,106100.0,106090.0,12.03600763]
[1749395874880,5.34470579,106100.0,106090.0,12.03600763]
[1749395875817,5.36356579,106100.0,106090.0,12.03600763]
[1749395876168,6.77464579,106100.0,106090.0,12.03600763]
[1749395880541,6.77458536,106100.0,106090.0,11.9510794]
[1749395880887,6.75199628,106100.0,106090.0,11.9510794]
[1749395883141,2.62719328,106100.0,106090.0,11.9510794]
[1749395883347,6.75199628,106100.0,106090.0,11.9510794]
[1749395883978,6.75135628,106100.0,106090.0,11.9510794]
[1749395884216,6.73249628,106100.0,106090.0,11.9510794]
[1749395885034,6.73245628,106100.0,106090.0,11.9510794]
[1749395885246,6.72445628,106100.0,106090.0,11.9510794]
[1749395885444,6.63046152,106100.0,106090.0,11.9510794]
[1749395885819,6.63846152,106100.0,106090.0,11.9510794]
[1749395886222,2.51365852,106100.0,106090.0,11.9510794]
[1749395886452,6.73245628,106100.0,106090.0,11.9510794]
[1749395886767,6.72345628,106100.0,106090.0,11.9510794]
[1749395886904,6.7460269,106100.0,106090.0,11.9510794]
[1749395887100,6.7560269,106100.0,106090.0,11.9510794]
[1749395887498,6.7687869,106100.0,106090.0,11.9510794]
[1749395887731,6.7687469,106100.0,106090.0,11.9510794]
[1749395888156,2.6439439,106100.0,106090.0,11.9510794]
[1749395888369,6.7687469,106100.0,106090.0,11.9510794]
[1749395888588,6.7687069,106100.0,106090.0,11.9510794]
[1749395889269,6.3784669,106100.0,106090.0,11.9510794]
[1749395889494,6.7685869,106100.0,106090.0,11.9510794]
[1749395890434,6.89980308,106100.0,106090.0,11.86615334]
[1749395890669,6.74601628,106100.0,106090.0,11.86615334]
[1749395891593,6.35589628,106100.0,106090.0,11.86615334]
[1749395891815,6.74613628,106100.0,106090.0,11.86615334]
[1749395893309,2.62133328,106100.0,106090.0,11.86615334]
[1749395893541,6.74613628,106100.0,106090.0,11.86615334]
[1749395897786,6.74549628,106100.0,106090.0,11.86615334]
[1749395899818,6.67402086,106100.0,106090.0,11.86615334]
[1749395900156,6.37778086,106100.0,106090.0,11.86615334]
[1749395900395,2.53226966,106100.0,106090.0,11.63968629]
[1749395900586,2.61887636,106100.0,106090.0,11.63968629]
[1749395900832,2.50190858,106100.0,106090.0,11.63968629]
[1749395901007,2.41530188,106100.0,106090.0,11.63968629]
[1749395901208,2.50190858,106100.0,106090.0,11.63968629]
[1749395901415,2.01246858,106100.0,106090.0,11.63968629]
[1749395901654,1.72734398,106100.0,106090.0,11.63968629]
[1749395901839,2.41342398,106100.0,106090.0,11.63968629]
[1749395902038,2.37796483,106100.0,106090.0,11.63968629]
[1749395902382,2.36796483,106100.0,106090.0,11.63968629]
[1749395902841,1.95031437,106100.0,106090.0,11.63968629]
[1749395903025,2.35147482,106100.0,106090.0,11.63968629]
[1749395903198,1.97481567,106100.0,106090.0,11.63968629]
[1749395903400,2.36397567,106100.0,106090.0,11.63968629]
[1749395903773,2.36989567,106100.0,106090.0,11.63968629]
[1749395903977,2.31989567,106100.0,106090.0,11.63968629]
[1749395904178,2.36889567,106100.0,106090.0,11.63968629]
[1749395904402,2.31889567,106100.0,106090.0,11.63968629]
[1749395904599,2.36889567,106100.0,106090.0,11.63968629]
[1749395910264,1.96527482,106100.0,106090.0,11.63968629]
[1749395910446,2.35367482,106100.0,106090.0,11.55477799]
[1749395914115,2.36821567,106100.0,106090.0,11.55477799]
[1749395914735,2.44366192,106100.0,106090.0,11.55477799]
[1749395920619,2.44349536,106100.0,106090.0,11.46986282]
[1749395923392,2.41821567,106100.0,106090.0,11.46986282]
[1749395926395,2.51748567,106100.0,106090.0,11.46986282]
[1749395926593,6.64228867,106100.0,106090.0,11.43796282]
[1749395926795,6.73661711,106100.0,106090.0,11.43796282]
[1749395930580,6.73661711,106100.0,106090.0,11.3530381]
[1749395931800,6.73661711,106100.0,106090.0,11.3747381]
[1749395932005,6.73661711,106100.0,106090.0,11.3951381]
[1749395933507,6.7365996,106100.0,106090.0,11.3951381]
[1749395940608,6.7365996,106100.0,106090.0,11.31021356]
[1749395940838,6.71400002,106100.0,106090.0,11.31021356]
[1749395942729,6.71400002,106100.0,106090.0,11.28981356]
[1749395942941,6.73660601,106100.0,106090.0,11.26811356]
[1749395943577,6.73660601,106100.0,106090.0,11.29031356]
[1749395944393,6.73660601,106100.0,106090.0,11.26811356]
[1749395946632,6.34820601,106100.0,106090.0,11.26811356]
[1749395946896,6.73232601,106100.0,106090.0,11.26811356]
[1749395947033,6.73232601,106100.0,106090.0,11.28831356]
[1749395947281,6.73232601,106100.0,106090.0,11.30891356]
[1749395949600,6.73080601,106100.0,106090.0,11.30891356]
[1749395950463,6.34820601,106100.0,106090.0,11.30891356]
[1749395950687,2.02413301,106100.0,106090.0,11.22398856]
[1749395950905,2.12413301,106100.0,106090.0,11.22398856]
[1749395951127,2.41232457,106100.0,106090.0,11.22398856]
[1749395951967,2.38971858,106100.0,106090.0,11.22398856]
[1749395952400,2.33963858,106100.0,106090.0,11.22398856]
[1749395952601,2.38963858,106100.0,106090.0,11.22398856]
[1749395954182,1.61719858,106100.0,106090.0,11.22398856]
[1749395954424,1.99947858,106100.0,106090.0,11.22398856]
[1749395954896,2.33947858,106100.0,106090.0,11.22398856]
[1749395955591,2.41489621,106100.0,106090.0,11.22398856]
[1749395956948,2.41469621,106100.0,106090.0,11.22398856]
[1749395958066,2.43731078,106100.0,106090.0,11.22398856]
[1749395960312,2.43707078,106100.0,106090.0,11.22398856]
[1749395960563,2.36165315,106100.0,106090.0,11.13907452]
[1749395960797,2.437014,106100.0,106090.0,11.13907452]
[1749395961021,2.41439943,106100.0,106090.0,11.13907452]
[1749395962378,2.41423943,106100.0,106090.0,11.13907452]
[1749395962988,2.03255943,106100.0,106090.0,11.13907452]
[1749395963211,2.41427943,106100.0,106090.0,11.13907452]
[1749395965016,2.03255943,106100.0,106090.0,11.13907452]
[1749395965251,2.41411943,106100.0,106090.0,11.13907452]
[1749395966883,2.03255943,106100.0,106090.0,11.13907452]
[1749395967096,2.41399943,106100.0,106090.0,11.13907452]
[1749395970202,2.41379943,106100.0,106090.0,11.13907452]
[1749395970618,2.43272702,106100.0,106090.0,11.13907452]
[1749395971195,2.43268702,106100.0,106090.0,11.13907452]
[1749395972725,2.14200702,106100.0,106090.0,11.13907452]
[1749395972928,2.33827858,106100.0,106090.0,11.13907452]
[1749395974007,2.43622947,106100.0,106090.0,11.0541654]
[1749395974209,2.38622947,106100.0,106090.0,11.0541654]
[1749395974429,2.43622947,106100.0,106090.0,11.0541654]
[1749395975066,2.41362542,106100.0,106090.0,11.0541654]
[1749395977884,2.36362542,106100.0,106090.0,11.0541654]
[1749395978089,2.41334542,106100.0,106090.0,11.0541654]
[1749395978300,2.36334542,106100.0,106090.0,11.0541654]
[1749395978717,2.41334542,106100.0,106090.0,11.0541654]
[1749395979568,2.36334542,106100.0,106090.0,11.0541654]
[1749395980479,2.32225773,106100.0,106090.0,11.14524556]
[1749395980691,1.98225773,106100.0,106090.0,11.14524556]
[1749395980908,1.99919763,106100.0,106090.0,11.14524556]
[1749395981126,2.37879763,106100.0,106090.0,11.14524556]
[1749395981803,2.37279763,106100.0,106090.0,11.14524556]
[1749395982021,2.36579763,106100.0,106090.0,11.14524556]
[1749395982236,2.36979763,106100.0,106090.0,11.14524556]
[1749395982445,2.37579763,106100.0,106090.0,11.14524556]
[1749395984037,2.39460457,106100.0,106090.0,11.0541654]
[1749395985098,2.40122672,106100.0,106090.0,11.0541654]
[1749395985293,2.39460457,106100.0,106090.0,11.0541654]
[1749395985740,2.40122688,106100.0,106090.0,11.0541654]
[1749395985942,2.41576773,106100.0,106090.0,11.0541654]
[1749395986729,2.40914542,106100.0,106090.0,11.0541654]
[1749395987056,2.41576658,106100.0,106090.0,11.0541654]
[1749395987257,2.40914542,106100.0,106090.0,11.0541654]
[1749395987498,2.41576659,106100.0,106090.0,11.0541654]
[1749395988387,2.41576652,106100.0,106090.0,11.0541654]
[1749395988984,2.41576694,106100.0,106090.0,11.0541654]
[1749395990279,2.40914542,106100.0,106090.0,11.0541654]
[1749395990492,2.41576694,106100.0,106090.0,11.0541654]
[1749395991145,2.40914542,106100.0,106090.0,11.0541654]
[1749395991364,2.41576739,106100.0,106090.0,11.0541654]
[1749395992230,2.40914542,106100.0,106090.0,11.0541654]
[1749395992641,2.41576739,106100.0,106090.0,11.0541654]
[1749395993455,2.41576839,106100.0,106090.0,11.0541654]
[1749395993632,2.40914542,106100.0,106090.0,11.0541654]
[1749395993835,2.4157684,106100.0,106090.0,11.0541654]
[1749395994223,2.41576846,106100.0,106090.0,11.0541654]
[1749395994977,2.40914542,106100.0,106090.0,11.0541654]
[1749395995125,2.41576846,106100.0,106090.0,11.0541654]
[1749395995345,2.40914542,106100.0,106090.0,11.0541654]
[1749395995536,2.41546307,106100.0,106090.0,11.0541654]
[1749395995959,2.41546305,106100.0,106090.0,11.0541654]
[1749395996846,2.40884003,106100.0,106090.0,11.0541654]
[1749395997055,2.41546485,106100.0,106090.0,11.0541654]
[1749395997254,2.40884003,106100.0,106090.0,11.0541654]
[1749395997461,2.41546479,106100.0,106090.0,11.0541654]
[1749395997866,2.40884003,106100.0,106090.0,11.0541654]
[1749395998100,2.41546479,106100.0,106090.0,11.0541654]
[1749395998787,2.40884003,106100.0,106090.0,11.0541654]
[1749395999009,2.41546479,106100.0,106090.0,11.0541654]
[1749395999277,1.86524003,106100.0,106090.0,11.0541654]
[1749395999492,1.87186479,106100.0,106090.0,11.0541654]
[1749396000316,1.8718651,106100.0,106090.0,11.0541654]
[1749396000544,1.87186515,106100.0,106090.0,11.0541654]
[1749396000704,1.86524003,106100.0,106090.0,11.0541654]
[1749396000933,1.87186515,106100.0,106090.0,11.0541654]
[1749396001133,1.86524003,106100.0,106090.0,11.0541654]
[1749396001499,1.80628425,106100.0,106090.0,11.15056488]
[1749396001711,1.80628425,106100.0,106090.0,11.0541654]
[1749396001928,1.78093741,106100.0,106090.0,11.0541654]
[1749396002141,1.87889751,106100.0,106090.0,11.0541654]
[1749396002357,1.86627244,106100.0,106090.0,11.0541654]
[1749396002577,1.87289894,106100.0,106090.0,11.0541654]
[1749396002789,1.87689894,106100.0,106090.0,11.0541654]
[1749396003227,1.86627244,106100.0,106090.0,11.0541654]
[1749396003407,1.87289894,106100.0,106090.0,11.0541654]
[1749396003656,1.87589894,106100.0,106090.0,11.0541654]
[1749396003869,1.86927244,106100.0,106090.0,11.0541654]
[1749396004077,1.87589894,106100.0,106090.0,11.0541654]
[1749396004501,1.86927244,106100.0,106090.0,11.0541654]
[1749396004936,1.87589894,106100.0,106090.0,11.15056488]
[1749396005362,1.86927244,106100.0,106090.0,11.15056488]
[1749396005778,1.80451372,106100.0,106090.0,11.15056488]
[1749396005982,1.73579338,106100.0,106090.0,11.15056488]
[1749396006191,1.73579324,106100.0,106090.0,11.15056488]
[1749396006412,1.73579323,106100.0,106090.0,11.15056488]
[1749396006842,1.72916688,106100.0,106090.0,11.15056488]
[1749396007054,1.73579416,106100.0,106090.0,11.0541654]
[1749396007477,1.72916688,106100.0,106090.0,11.0541654]
[1749396007686,1.73579416,106100.0,106090.0,11.0541654]
[1749396008067,1.72916688,106100.0,106090.0,11.0541654]
[1749396008420,1.73579416,106100.0,106090.0,11.0541654]
[1749396008631,1.35060688,106100.0,106090.0,11.10042433]
[1749396008853,1.73563416,106100.0,106090.0,11.10042433]
[1749396009027,1.72900688,106100.0,106090.0,11.10042433]
[1749396009231,1.73563416,106100.0,106090.0,11.10042433]
[1749396009432,1.72900688,106100.0,106090.0,11.0541654]
[1749396009849,1.73563416,106100.0,106090.0,11.0541654]
[1749396010463,1.73563571,106100.0,106090.0,11.0541654]
[1749396010893,1.72900688,106100.0,106090.0,11.0541654]
[1749396011123,1.73495571,106100.0,106090.0,11.0541654]
[1749396011325,1.72832688,106100.0,106090.0,11.0541654]
[1749396011530,1.73495571,106100.0,106090.0,11.0541654]
[1749396012346,1.72832688,106100.0,106090.0,11.0541654]
[1749396012599,1.73495682,106100.0,106090.0,11.0541654]
[1749396012813,1.72832688,106100.0,106090.0,11.0541654]
[1749396013004,1.73495682,106100.0,106090.0,11.0541654]
[1749396013231,1.73495123,106100.0,106090.0,11.0541654]
[1749396013631,1.72832688,106100.0,106090.0,11.0541654]
[1749396013842,1.73495123,106100.0,106090.0,11.0541654]
[1749396014270,1.79146606,106100.0,106090.0,11.0541654]
[1749396014515,1.79959597,106100.0,106090.0,11.0541654]
[1749396015168,1.80622032,106100.0,106090.0,11.0541654]
[1749396015810,1.79955597,106100.0,106090.0,11.0541654]
[1749396016027,1.8061796,106100.0,106090.0,11.0541654]
[1749396016241,1.79955597,106100.0,106090.0,11.0541654]
[1749396016671,1.8061796,106100.0,106090.0,11.0541654]
[1749396017069,1.77694271,106100.0,106090.0,11.0541654]
[1749396017450,1.78356634,106100.0,106090.0,11.0541654]
[1749396017654,1.77694271,106100.0,106090.0,11.0541654]
[1749396017859,1.78356634,106100.0,106090.0,11.0541654]
[1749396018056,1.77694271,106100.0,106090.0,11.0541654]
[1749396018258,1.78356634,106100.0,106090.0,11.0541654]
[1749396018916,1.77694271,106100.0,106090.0,11.0541654]
[1749396019154,1.78356547,106100.0,106090.0,11.0541654]
[1749396019361,1.77694271,106100.0,106090.0,11.0541654]
[1749396019792,1.78356547,106100.0,106090.0,11.0541654]
[1749396021197,1.7835643,106100.0,106090.0,11.0541654]
[1749396022266,1.77694271,106100.0,106090.0,11.0541654]
[1749396022719,1.7835643,106100.0,106090.0,11.0541654]
[1749396022930,1.77694271,106100.0,106090.0,11.0541654]
[1749396023145,1.72704962,106100.0,106090.0,11.0541654]
[1749396024002,1.72704871,106100.0,106090.0,11.0541654]
[1749396024216,1.72042788,106100.0,106090.0,11.0541654]
[1749396024400,1.72704871,106100.0,106090.0,11.0541654]
[1749396024850,1.72042788,106100.0,106090.0,11.0541654]
[1749396025060,1.72704871,106100.0,106090.0,11.0541654]
[1749396025705,1.85239593,106100.0,106090.0,11.0541654]
[1749396026399,1.84577472,106100.0,106090.0,11.0541654]
[1749396026830,1.47471628,106100.0,106090.0,11.0541654]
[1749396027053,1.85239628,106100.0,106090.0,11.0541654]
[1749396027502,1.84577472,106100.0,106090.0,11.0541654]
[1749396027724,1.85239755,106100.0,106090.0,11.0541654]
[1749396027952,1.84577472,106100.0,106090.0,11.0541654]
[1749396028814,1.85239755,106100.0,106090.0,11.0541654]
[1749396029689,1.84577472,106100.0,106090.0,11.0541654]
[1749396030150,1.85239916,106100.0,106090.0,11.0541654]
[1749396030367,1.84577472,106100.0,106090.0,11.0541654]
[1749396030582,1.85239916,106100.0,106090.0,11.0541654]
[1749396030794,1.85239914,106100.0,106090.0,11.0541654]
[1749396031216,1.71579244,106100.0,106090.0,11.15056488]
[1749396031467,1.79577472,106100.0,106090.0,11.0541654]
[1749396032107,1.50681472,106100.0,106090.0,11.0541654]
[1749396032330,1.76579221,106100.0,106090.0,11.0541654]
[1749396032542,1.76579214,106100.0,106090.0,11.0541654]
[1749396032766,1.76579212,106100.0,106090.0,11.0541654]
[1749396033197,1.75916802,106100.0,106090.0,11.0541654]
[1749396033412,1.76579204,106100.0,106090.0,11.0541654]
[1749396033651,1.30614118,106100.0,106090.0,11.0541654]
[1749396033860,1.68382118,106100.0,106090.0,11.0541654]
[1749396034070,1.69044518,106100.0,106090.0,11.0541654]
[1749396034727,1.69044518,106100.0,106090.0,11.15056488]
[1749396034941,1.06318372,106100.0,106090.0,11.15056488]
[1749396035157,1.09151072,106100.0,106090.0,11.15056488]
[1749396035372,1.04151211,106100.0,106090.0,11.15056488]
[1749396035581,1.07151211,106100.0,106090.0,11.15056488]
[1749396035790,1.02151211,106100.0,106090.0,11.15056488]
[1749396035998,1.07151211,106100.0,106090.0,11.15056488]
[1749396036228,1.06488672,106100.0,106090.0,11.15056488]
[1749396036448,1.0715121,106100.0,106090.0,11.15056488]
[1749396036879,1.06488672,106100.0,106090.0,11.15056488]
[1749396037090,1.0715121,106100.0,106090.0,11.15056488]
[1749396037308,1.06488672,106100.0,106090.0,11.15056488]
[1749396037778,1.0715121,106100.0,106090.0,11.15056488]
[1749396038621,1.06488672,106100.0,106090.0,11.15056488]
[1749396038854,1.0715121,106100.0,106090.0,11.15056488]
[1749396039067,1.06488672,106100.0,106090.0,11.15056488]
[1749396039286,1.0715121,106100.0,106090.0,11.15056488]
[1749396039503,1.06488672,106100.0,106090.0,11.15056488]
[1749396039923,1.0715121,106100.0,106090.0,11.15056488]
[1749396040803,1.06488672,106100.0,106090.0,11.15056488]
[1749396041023,1.0715121,106100.0,106090.0,11.15056488]
[1749396041495,1.06488672,106100.0,106090.0,11.15056488]
[1749396041920,1.0715121,106100.0,106090.0,11.15056488]
[1749396042356,1.0215121,106100.0,106090.0,11.15056488]
[1749396042581,1.01488672,106100.0,106090.0,11.15056488]
[1749396043010,1.0215121,106100.0,106090.0,11.15056488]
[1749396043242,1.02151172,106100.0,106090.0,11.15056488]
[1749396043665,1.02151168,106100.0,106090.0,11.15056488]
[1749396043881,1.01488672,106100.0,106090.0,11.15056488]
[1749396044106,1.02151167,106100.0,106090.0,11.15056488]
[1749396044644,1.01488672,106100.0,106090.0,11.15056488]
[1749396044847,1.03373489,106100.0,106090.0,11.15056488]
[1749396045314,1.04035984,106100.0,106090.0,11.15056488]
[1749396045512,0.98381534,106100.0,106090.0,11.15056488]
[1749396045717,0.98381532,106100.0,106090.0,11.15056488]
[1749396045919,1.04036319,106100.0,106090.0,11.15056488]
[1749396046119,0.48025002,106100.0,106090.0,11.15056488]
[1749396046326,0.81104067,106100.0,106090.0,11.15056488]
[1749396046536,1.14441576,106100.0,106090.0,11.15056488]
[1749396046740,1.15104041,106100.0,106090.0,11.15056488]
[1749396046948,1.14441576,106100.0,106090.0,11.15056488]
[1749396047159,0.49751215,106100.0,106090.0,10.15056488]
[1749396047354,0.70771591,106100.0,106090.0,10.15056488]
[1749396047604,0.71434056,106100.0,106090.0,10.15056488]
[1749396048157,0.70771591,106100.0,106090.0,10.15056488]
[1749396048372,0.71434056,106100.0,106090.0,10.15056488]
[1749396049217,0.76542056,106100.0,106090.0,10.15056488]
[1749396049420,0.75879591,106100.0,106090.0,10.15056488]
[1749396049646,1.02601306,106100.0,106090.0,10.15056488]
[1749396049840,1.02601304,106100.0,106090.0,10.15056488]
[1749396050015,1.02601289,106100.0,106090.0,10.15056488]
[1749396050199,1.01938891,106100.0,106090.0,10.15056488]
[1749396050410,1.02601287,106100.0,106090.0,10.15056488]
[1749396050641,0.9977425,106100.0,106090.0,10.15056488]
[1749396050984,1.02601294,106100.0,106090.0,10.15056488]
[1749396051387,1.01938891,106100.0,106090.0,10.15056488]
[1749396051589,0.99774252,106100.0,106090.0,10.15056488]
[1749396051710,0.99111849,106100.0,106090.0,10.15056488]
[1749396051923,0.99774252,106100.0,106090.0,10.15056488]
[1749396052131,0.99774252,106100.0,106090.0,10.0541654]
[1749396052337,0.99774253,106100.0,106090.0,10.0541654]
[1749396052555,0.99111849,106100.0,106090.0,10.0541654]
[1749396052789,0.99774253,106100.0,106090.0,10.0541654]
[1749396053203,0.99111849,106100.0,106090.0,10.0541654]
[1749396053408,0.99774085,106100.0,106090.0,10.15056488]
[1749396053644,0.99111849,106100.0,106090.0,10.15056488]
[1749396053865,0.99774085,106100.0,106090.0,10.15056488]
[1749396054056,0.99111849,106100.0,106090.0,10.15056488]
[1749396054256,0.99111849,106100.0,106090.0,10.0541654]
[1749396054465,0.99774085,106100.0,106090.0,10.0541654]
[1749396055193,0.99111849,106100.0,106090.0,10.0541654]
[1749396055404,0.99774084,106100.0,106090.0,10.0541654]
[1749396056052,0.99111849,106100.0,106090.0,10.0541654]
[1749396056259,0.99774084,106100.0,106090.0,10.15056488]
[1749396056475,0.99111849,106100.0,106090.0,10.15056488]
[1749396056696,0.99774085,106100.0,106090.0,10.15056488]
[1749396056903,0.99111849,106100.0,106090.0,10.15056488]
[1749396057111,0.99775013,106100.0,106090.0,10.15056488]
[1749396057311,1.05708281,106100.0,106090.0,10.15056488]
[1749396057747,1.06371445,106100.0,106090.0,10.15056488]